bitfinex-derivatives/quotes_SOLF0:USTF0_20250416
["timestamp","ask_amount","ask_price","bid_price","bid_amount"]
[1744812681248,30.66604828,125.64,125.55,362.0]
[1744812681443,30.66604828,125.62,125.54,6.2658]
[1744812682141,8.01449289,125.59,125.57,0.05106362]
[1744812682339,0.05603705,125.59,125.57,0.05106362]
[1744812685253,0.05603705,125.59,125.57,8.01506362]
[1744812686044,0.05603705,125.59,125.57,0.05106362]
[1744812686755,7.9636,125.58,125.57,0.05106362]
[1744812687856,0.05603705,125.59,125.57,0.05106362]
[1744812688355,7.9636,125.58,125.57,0.05106362]
[1744812689052,0.05603705,125.59,125.57,0.05106362]
[1744812690648,0.05603705,125.59,125.57,8.01526362]
[1744812691055,0.05603705,125.59,125.57,0.05106362]
[1744812691355,8.01913705,125.59,125.57,0.05106362]
[1744812691653,0.05603705,125.59,125.57,0.05106362]
[1744812693654,8.01963705,125.59,125.57,0.05106362]
[1744812694156,0.05603705,125.59,125.57,0.05106362]
[1744812694353,7.9636,125.58,125.57,0.05106362]
[1744812699967,0.05603705,125.59,125.5,2.1812]
[1744812700168,30.66604828,125.6,125.51,12.1101]
[1744812700358,7.9659,125.55,125.51,12.1101]
[1744812700958,0.05686755,125.54,125.52,0.05668655]
[1744812701156,30.66604828,125.58,125.52,0.06088234]
[1744812701462,7.9673,125.53,125.52,0.06088234]
[1744812701658,0.05088558,125.54,125.52,0.06088234]
[1744812701962,8.01748558,125.54,125.52,0.06088234]
[1744812702363,0.05088558,125.54,125.52,0.06088234]
[1744812702558,7.9633,125.59,125.52,30.72693062]
[1744812702759,0.7995,125.63,125.52,30.72693062]
[1744812703065,7.964,125.58,125.54,7.9658]
[1744812703562,0.05466477,125.57,125.55,0.05951087]
[1744812705260,30.66604828,125.64,125.55,0.05951087]
[1744812705459,30.66604828,125.64,125.54,30.66604828]
[1744812705663,573.42,125.65,125.56,30.66604828]
[1744812705867,1.38584684,125.68,125.58,30.66604828]
[1744812706068,0.8558,125.69,125.58,30.66604828]
[1744812706264,30.66604828,125.7,125.62,0.05069218]
[1744812706565,0.05028818,125.65,125.6,30.66604828]
[1744812706767,573.42,125.71,125.61,0.05957607]
[1744812706968,573.42,125.71,125.6,30.66604828]
[1744812707569,573.42,125.71,125.62,30.66604828]
[1744812707868,7.9576,125.68,125.63,7.96]
[1744812708071,0.05465929,125.68,125.65,0.05198376]
[1744812708865,7.9586,125.66,125.65,0.05198376]
[1744812709471,7.9582,125.67,125.65,0.05198376]
[1744812710067,0.05465929,125.68,125.65,0.05198376]
[1744812712174,7.9586,125.66,125.65,0.05198376]
[1744812720881,7.9582,125.67,125.65,0.05198376]
[1744812721180,19.20720045,125.68,125.65,0.05198376]
[1744812721482,7.9584,125.67,125.65,0.05198376]
[1744812721981,0.05465929,125.68,125.65,0.05198376]
[1744812722281,8.01235929,125.68,125.65,0.05198376]
[1744812723186,573.18,125.77,125.66,19.15254116]
[1744812723382,19.15254116,125.76,125.68,19.15254116]
[1744812723677,7.9551,125.72,125.66,19.15254116]
[1744812724283,0.02350138,125.7,125.68,0.05370597]
[1744812724785,0.02350138,125.7,125.68,8.01070597]
[1744812727288,0.02350138,125.7,125.69,7.9567]
[1744812727484,0.02350138,125.7,125.68,0.05370597]
[1744812728487,0.02350138,125.7,125.69,7.9567]
[1744812728689,0.02350138,125.7,125.69,10.0754]
[1744812729986,30.61043459,125.81,125.69,40.68913459]
[1744812730186,46.50693459,125.83,125.72,30.61043459]
[1744812730387,46.50693459,125.83,125.73,7.9538]
[1744812731186,46.50693459,125.83,125.77,0.05694096]
[1744812731484,7.9514,125.78,125.77,0.05694096]
[1744812731886,7.9525,125.76,125.7,34.97643459]
[1744812732091,7.9525,125.76,125.71,7.9551]
[1744812732389,7.9525,125.76,125.7,4.366]
[1744812732890,7.9525,125.76,125.72,7.9547]
[1744812733087,0.05260664,125.74,125.72,0.0510118]
[1744812733286,30.61043459,125.75,125.72,0.0510118]
[1744812733584,574.40430327,125.84,125.73,572.86]
[1744812733585,30.61043459,125.84,125.73,572.86]
[1744812733787,30.61043459,125.86,125.74,30.61043459]
[1744812733981,30.61043459,125.86,125.77,7.9512]
[1744812734182,30.61043459,125.86,125.78,2.231]
[1744812734688,30.61043459,125.86,125.81,0.05567429]
[1744812737092,30.61043459,125.82,125.81,0.05567429]
[1744812737294,30.61043459,125.82,125.75,2.1406]
[1744812738300,30.66149288,125.8,125.77,0.05148807]
[1744812738500,30.66149288,125.8,125.74,2.0646]
[1744812738701,30.66149288,125.8,125.77,0.05774739]
[1744812739388,0.05105829,125.8,125.77,0.05774739]
[1744812739589,7.951,125.79,125.77,0.05774739]
[1744812739791,0.05105829,125.8,125.77,0.05774739]
[1744812740188,7.951,125.78,125.77,0.05774739]
[1744812740797,0.05105829,125.8,125.77,0.05774739]
[1744812743095,8.00105829,125.8,125.77,0.05774739]
[1744812743300,0.05105829,125.8,125.77,0.05774739]
[1744812743900,7.9503,125.79,125.77,0.05774739]
[1744812744100,0.05105829,125.8,125.77,0.05774739]
[1744812745901,7.9507,125.79,125.77,0.05774739]
[1744812746302,0.05105829,125.8,125.77,0.05774739]
[1744812746504,7.951,125.78,125.77,0.05774739]
[1744812747806,0.05105829,125.8,125.77,0.05774739]
[1744812748506,8.00075829,125.8,125.77,0.05774739]
[1744812748902,0.05105829,125.8,125.77,0.05774739]
[1744812749802,8.00105829,125.8,125.77,0.05774739]
[1744812750101,0.05105829,125.8,125.77,0.05774739]
[1744812750699,8.00075829,125.8,125.77,0.05774739]
[1744812751205,7.951,125.78,125.77,0.05774739]
[1744812751404,30.57224999,125.79,125.71,368.3438]
[1744812751604,30.57224999,125.79,125.71,4.217]
[1744812751800,7.9539,125.74,125.71,4.217]
[1744812752400,30.57224999,125.77,125.71,0.05609091]
[1744812752606,0.05521997,125.74,125.71,0.05609091]
[1744812753408,0.05521997,125.74,125.72,7.9546]
[1744812754108,31.9565808,125.82,125.71,0.05609091]
[1744812754306,1.38433081,125.82,125.74,30.57224999]
[1744812754505,33.22444999,125.84,125.75,2.0313]
[1744812754810,7.9501,125.8,125.75,9.9839]
[1744812755208,0.05198459,125.79,125.76,0.0521558]
[1744812756510,0.05198459,125.79,125.77,7.9513]
[1744812756911,0.05198459,125.79,125.76,0.0521558]
[1744812757912,0.05198459,125.79,125.76,8.0040558]
[1744812759416,572.72,125.85,125.76,0.0521558]
[1744812759609,572.72,125.85,125.77,4.1038]
[1744812759807,30.57224999,125.84,125.75,2.0313]
[1744812760516,30.57224999,125.84,125.78,0.05078704]
[1744812761018,7.9503,125.79,125.78,0.05078704]
[1744812761209,30.57224999,125.84,125.78,0.05078704]
[1744812761920,7.95,125.8,125.78,0.05078704]
[1744812762421,7.9495,125.81,125.78,0.05078704]
[1744812762610,572.72,125.85,125.78,0.05078704]
[1744812762915,7.949,125.82,125.78,0.05078704]
[1744812763218,572.72,125.85,125.78,0.05078704]
[1744812763519,572.72,125.85,125.78,8.00168704]
[1744812764019,7.9487,125.82,125.78,0.05078704]
[1744812764719,7.9489,125.82,125.78,0.05078704]
[1744812765021,30.57224999,125.84,125.78,0.05078704]
[1744812765215,7.9496,125.81,125.78,0.05078704]
[1744812766622,572.72,125.85,125.78,0.05078704]
[1744812767123,7.9494,125.81,125.78,0.05078704]
[1744812767330,30.57224999,125.82,125.78,0.05078704]
[1744812767621,7.9526,125.76,125.72,2.0064]
[1744812768522,0.05395864,125.75,125.73,0.05366293]
[1744812769225,7.9535,125.74,125.73,0.05366293]
[1744812770322,7.9562,125.7,125.67,4.3166]
[1744812770826,30.57224999,125.76,125.67,4.3166]
[1744812771028,7.9559,125.71,125.67,4.3166]
[1744812771327,30.57224999,125.76,125.67,4.3166]
[1744812771524,7.9564,125.7,125.68,0.05447199]
[1744812771719,7.9564,125.7,125.67,4.3166]
[1744812771919,0.05308329,125.7,125.68,0.0593629]
[1744812772528,0.05308329,125.7,125.61,567.57224999]
[1744812772728,30.57224999,125.72,125.62,4.0491]
[1744812772929,30.57224999,125.72,125.62,12.0101]
[1744812773124,32.58444999,125.72,125.62,12.0101]
[1744812773324,30.57224999,125.7,125.62,4.0491]
[1744812773529,7.9595,125.65,125.62,4.0491]
[1744812773923,7.9595,125.65,125.62,4.10548938]
[1744812774530,0.05768211,125.67,125.62,4.10548938]
[1744812774728,0.05768211,125.67,125.62,0.05638938]
[1744812775832,7.9603,125.64,125.62,0.05638938]
[1744812776034,30.57224999,125.68,125.62,0.05638938]
[1744812776234,8.01440707,125.64,125.62,0.05638938]
[1744812776535,0.05400707,125.64,125.62,0.05638938]
[1744812776732,30.62625706,125.64,125.58,362.0]
[1744812777033,30.62625706,125.64,125.54,4.237]
[1744812777229,30.57224999,125.64,125.55,7.9655]
[1744812777730,30.57224999,125.64,125.54,34.80924999]
[1744812777935,7.9637,125.58,125.54,4.237]
[1744812778337,0.05426252,125.57,125.55,0.05557363]
[1744812780138,0.05426252,125.57,125.55,8.02087363]
[1744812780339,30.57224999,125.65,125.55,0.05557363]
[1744812780539,7.9621,125.61,125.54,34.80924999]
[1744812780745,30.57224999,125.65,125.54,34.80924999]
[1744812780943,7.9605,125.63,125.56,30.57224999]
[1744812781244,30.57224999,125.65,125.57,2.0235]
[1744812781434,0.05265486,125.61,125.58,0.05843018]
[1744812781939,30.62490485,125.61,125.58,0.05843018]
[1744812782140,7.963,125.59,125.58,0.05843018]
[1744812782441,30.62490485,125.61,125.54,366.237]
[1744812782635,30.62490485,125.61,125.51,2.22]
[1744812782636,7.965,125.56,125.51,2.22]
[1744812783040,7.965,125.56,125.51,10.1878]
[1744812783440,30.57224999,125.61,125.54,7.9659]
[1744812783648,2.0095,125.64,125.56,30.57224999]
[1744812783847,31.12564999,125.67,125.57,2.1205]
[1744812784046,7.9624,125.6,125.57,2.1205]
[1744812784549,30.57224999,125.65,125.57,2.1205]
[1744812784848,0.06125045,125.62,125.6,0.05252437]
[1744812785046,7.9618,125.61,125.6,0.05252437]
[1744812785248,0.06125045,125.62,125.6,0.05252437]
[1744812785746,8.02265045,125.62,125.6,0.05252437]
[1744812786442,0.06125045,125.62,125.6,0.05252437]
[1744812789053,8.02245045,125.62,125.6,0.05252437]
[1744812789347,0.06125045,125.62,125.6,0.05252437]
[1744812790048,0.06125045,125.62,125.57,2.1205]
[1744812790246,30.57224999,125.61,125.55,2.0633]
[1744812790447,7.9641,125.58,125.55,2.0633]
[1744812791149,7.9644,125.57,125.55,2.11481483]
[1744812791344,0.0561125,125.58,125.55,0.05151483]
[1744812792248,7.9649,125.56,125.55,0.05151483]
[1744812792448,0.0561125,125.58,125.55,0.05151483]
[1744812792851,7.9647,125.57,125.55,0.05151483]
[1744812793050,0.0561125,125.58,125.55,0.05151483]
[1744812793243,7.9649,125.56,125.55,0.05151483]
[1744812793543,0.0561125,125.58,125.55,0.05151483]
[1744812794751,7.9643,125.57,125.55,0.05151483]
[1744812795050,0.0561125,125.58,125.55,0.05151483]
[1744812795452,7.9643,125.57,125.55,0.05151483]
[1744812795945,0.0561125,125.58,125.55,0.05151483]
[1744812797152,7.9649,125.56,125.55,0.05151483]
[1744812800552,7.9645,125.57,125.55,0.05151483]
[1744812801250,7.9643,125.57,125.55,0.05151483]
[1744812801453,0.0561125,125.58,125.55,0.05151483]
[1744812801749,7.9627,125.6,125.55,8.01671483]
[1744812801949,2.0593,125.66,125.56,32.66794999]
[1744812802353,7.9612,125.62,125.56,32.66794999]
[1744812802551,2.0593,125.66,125.56,394.66794999]
[1744812802752,0.06005473,125.62,125.6,0.05922967]
[1744812802955,604.01224999,125.67,125.6,0.05922967]
[1744812803153,573.44,125.67,125.6,0.05922967]
[1744812803357,0.05834274,125.65,125.6,0.05922967]
[1744812803853,7.9607,125.63,125.6,0.05922967]
[1744812804446,0.05834274,125.65,125.6,0.05922967]
[1744812807454,7.9614,125.62,125.6,0.05922967]
[1744812807650,573.44,125.67,125.6,0.05922967]
[1744812807851,0.05292167,125.65,125.6,0.05922967]
[1744812808253,7.9615,125.62,125.6,0.05922967]
[1744812808454,8.02275703,125.62,125.6,0.05922967]
[1744812810059,7.9617,125.61,125.6,0.05922967]
[1744812810361,7.9617,125.61,125.6,2.967e-05]
[1744812810661,0.06125703,125.62,125.54,2.1249]
[1744812810860,30.57224999,125.63,125.54,2.1249]
[1744812811060,7.9634,125.59,125.54,10.0911]
[1744812811255,30.57224999,125.63,125.54,2.1249]
[1744812811463,30.57224999,125.65,125.54,32.69714999]
[1744812811662,0.05790075,125.6,125.57,0.05318282]
[1744812811861,0.05790075,125.6,125.57,0.0509606]
[1744812812162,7.9635,125.59,125.57,0.0509606]
[1744812812363,0.05790075,125.6,125.57,0.0509606]
[1744812812662,7.9636,125.58,125.57,0.0509606]
[1744812814264,0.05790075,125.6,125.57,0.0509606]
[1744812815463,7.9636,125.59,125.57,0.0509606]
[1744812815663,0.05790075,125.6,125.57,0.0509606]
[1744812816367,7.963,125.59,125.57,0.0509606]
[1744812816862,7.9636,125.58,125.57,0.0509606]
[1744812817662,7.9632,125.59,125.57,0.0509606]
[1744812817865,0.05790075,125.6,125.57,0.0509606]
[1744812818262,8.02040075,125.6,125.57,0.0509606]
[1744812818458,0.05790075,125.6,125.57,0.0509606]
[1744812818662,7.9636,125.58,125.57,0.0509606]
[1744812819068,0.05790075,125.6,125.57,0.0509606]
[1744812819361,7.9633,125.59,125.57,0.0509606]
[1744812819567,0.05790075,125.6,125.57,0.0509606]
[1744812819767,7.9636,125.58,125.57,0.0509606]
[1744812822964,7.9636,125.58,125.57,6.06e-05]
[1744812824370,38.53224999,125.58,125.44,420.2169587]
[1744812824566,30.57224999,125.54,125.46,4.3248]
[1744812824970,7.9696,125.49,125.46,4.3248]
[1744812825570,0.05123991,125.49,125.46,4.38575562]
[1744812826069,31.23274999,125.56,125.46,4.38575562]
[1744812826269,7.9679,125.52,125.47,7.9703]
[1744812826471,30.57224999,125.54,125.46,4.3248]
[1744812826665,7.9694,125.49,125.46,4.3248]
[1744812827170,8.0237092,125.49,125.46,4.38378736]
[1744812828771,0.0543092,125.49,125.46,4.38378736]
[1744812829271,0.0543092,125.49,125.46,12.35478736]
[1744812830173,8.0237092,125.49,125.46,4.38378736]
[1744812830370,0.0543092,125.49,125.46,4.38378736]
[1744812830671,0.0543092,125.49,125.46,12.35488736]
[1744812830873,0.0543092,125.49,125.46,4.38378736]
[1744812831573,31.23274999,125.56,125.46,4.38378736]
[1744812831774,31.23274999,125.56,125.46,4.3248]
[1744812831977,7.9678,125.52,125.48,7.9697]
[1744812832170,31.23274999,125.56,125.46,4.3248]
[1744812832370,31.23274999,125.56,125.46,12.2957]
[1744812832572,7.9681,125.51,125.5,0.05624602]
[1744812836477,8.02192786,125.52,125.5,0.05624602]
[1744812836671,0.05442786,125.52,125.5,0.05624602]
[1744812836975,8.02242786,125.52,125.5,0.05624602]
[1744812837779,7.9681,125.51,125.5,0.05624602]
[1744812839279,7.9702,125.48,125.46,2.1133]
[1744812839477,19.20488728,125.51,125.44,2.2257]
[1744812839679,19.20488728,125.49,125.42,2.0204]
[1744812840381,0.05506729,125.47,125.44,0.05135964]
[1744812840977,7.9716,125.46,125.44,0.05135964]
[1744812841575,7.9719,125.45,125.44,0.05135964]
[1744812844181,8.02606729,125.47,125.44,0.05135964]
[1744812844372,0.05506729,125.47,125.44,0.05135964]
[1744812844882,7.9719,125.45,125.44,0.05135964]
[1744812848679,7.9719,125.45,125.44,5.964e-05]
[1744812848982,7.9741,125.42,125.38,2.1662]
[1744812849379,1.38789184,125.47,125.38,2.1662]
[1744812849576,30.73857625,125.48,125.38,2.1662]
[1744812849775,33.56027625,125.5,125.39,30.73857625]
[1744812849980,0.05845614,125.44,125.42,0.05482829]
[1744812850285,0.05895602,125.44,125.42,0.05169807]
[1744812850682,8.03155602,125.44,125.42,0.05169807]
[1744812850878,0.05895602,125.44,125.42,0.05169807]
[1744812852982,8.03155602,125.44,125.42,0.05169807]
[1744812853587,7.9732,125.43,125.42,0.05169807]
[1744812859392,0.05895602,125.44,125.42,0.05169807]
[1744812860894,7.9732,125.43,125.42,0.05169807]
[1744812861695,7.9738,125.42,125.38,7.9761]
[1744812861896,7.9738,125.42,125.37,7.9767]
[1744812862098,19.22366153,125.45,125.36,21.34136153]
[1744812862396,19.22366153,125.47,125.4,7.9749]
[1744812862791,0.05861822,125.45,125.42,0.06071332]
[1744812862998,7.9726,125.44,125.42,0.06071332]
[1744812863293,0.05861822,125.45,125.42,0.06071332]
[1744812863898,8.03061822,125.45,125.42,0.06071332]
[1744812864298,0.05861822,125.45,125.42,19.28437485]
[1744812864598,0.05861822,125.45,125.43,2.1196]
[1744812864803,0.05861822,125.45,125.43,10.0924]
[1744812865400,0.05861822,125.45,125.44,7.9725]
[1744812865803,0.05861822,125.45,125.43,2.1196]
[1744812865998,593.02366153,125.51,125.43,2.1196]
[1744812866205,573.8,125.51,125.44,19.22366153]
[1744812866504,593.02366153,125.51,125.43,2.1196]
[1744812867103,7.9715,125.46,125.43,2.1196]
[1744812867506,7.9715,125.46,125.43,2.17164401]
[1744812868405,7.9722,125.45,125.43,2.17164401]
[1744812868606,8.02440965,125.45,125.43,2.17164401]
[1744812869209,19.22366153,125.49,125.43,2.17164401]
[1744812869210,2.1544,125.5,125.43,2.17164401]
[1744812869405,573.8,125.51,125.46,7.9711]
[1744812869605,573.8,125.51,125.44,19.22366153]
[1744812869808,7.9698,125.49,125.44,19.22366153]
[1744812870006,7.9698,125.49,125.45,7.9716]
[1744812870206,7.9698,125.49,125.44,19.22366153]
[1744812870406,0.05242469,125.48,125.46,0.0559985]
[1744812870609,8.02252469,125.48,125.46,0.0559985]
[1744812870809,0.05242469,125.48,125.46,0.0559985]
[1744812871110,7.9706,125.47,125.46,0.0559985]
[1744812871913,8.02272469,125.48,125.46,0.0559985]
[1744812872213,19.22366153,125.54,125.46,19.27966003]
[1744812872415,7.969,125.5,125.47,7.9702]
[1744812872714,19.22366153,125.54,125.45,2.194]
[1744812872919,19.22366153,125.52,125.45,2.194]
[1744812873320,8.0206556,125.5,125.47,0.05949605]
[1744812874522,8.0206556,125.5,125.47,8.02999605]
[1744812874921,0.0518556,125.5,125.47,0.05949605]
[1744812875122,19.27551713,125.5,125.47,0.05949605]
[1744812875417,7.9722,125.45,125.41,10.1927]
[1744812876422,0.05358736,125.44,125.42,8.03274667]
[1744812876729,0.05358736,125.44,125.42,0.05904667]
[1744812877023,0.05358736,125.44,125.42,8.03284667]
[1744812877623,0.05358736,125.44,125.42,10.22604667]
[1744812878621,0.05358736,125.44,125.42,2.25224667]
[1744812879322,8.02638736,125.44,125.42,0.05904667]
[1744812879523,0.05358736,125.44,125.42,0.05904667]
[1744812880026,8.02638736,125.44,125.42,0.05904667]
[1744812880626,0.05358736,125.44,125.42,0.05904667]
[1744812882732,8.02608736,125.44,125.42,0.05904667]
[1744812883026,0.05358736,125.44,125.42,0.05904667]
[1744812883227,0.05358736,125.44,125.42,2.23494667]
[1744812883617,2.2178,125.49,125.42,2.23494667]
[1744812883618,574.882,125.51,125.42,2.23494667]
[1744812883818,574.882,125.51,125.42,2.1759]
[1744812884630,7.9716,125.46,125.42,10.1493]
[1744812884829,7.9716,125.46,125.45,0.05562689]
[1744812888727,8.02396045,125.47,125.45,0.05562689]
[1744812889328,7.9713,125.46,125.45,0.05562689]
[1744812898937,0.05306045,125.47,125.4,10.1639]
[1744812899136,19.22366153,125.48,125.4,2.1892]
[1744812899634,19.22366153,125.48,125.4,10.164]
[1744812899933,0.05908482,125.45,125.43,0.05877139]
[1744812900637,595.49330433,125.51,125.43,19.28243292]
[1744812900638,575.3276428,125.51,125.43,19.28243292]
[1744812900839,19.22366153,125.55,125.47,19.22366153]
[1744812901031,596.29146153,125.57,125.49,19.22366153]
[1744812901237,577.0678,125.57,125.49,19.22366153]
[1744812901534,7.9677,125.52,125.48,4.288]
[1744812901734,596.29146153,125.57,125.48,4.288]
[1744812901934,596.29146153,125.57,125.49,8.02341821]
[1744812902133,0.05684407,125.54,125.48,4.288]
[1744812902435,0.05684407,125.54,125.52,0.05384416]
[1744812902636,8.02344407,125.54,125.52,0.05384416]
[1744812902837,0.05684407,125.54,125.52,0.05384416]
[1744812903636,0.05684407,125.54,125.53,27.19046153]
[1744812904938,7.9647,125.57,125.53,19.22366153]
[1744812905132,19.22366153,125.61,125.53,19.22366153]
[1744812905336,19.22366153,125.61,125.52,0.05384416]
[1744812905337,19.22366153,125.59,125.51,19.22366153]
[1744812905838,7.9652,125.56,125.51,19.22366153]
[1744812906039,8.0230056,125.56,125.54,0.05160855]
[1744812906338,7.9655,125.55,125.54,0.05160855]
[1744812909442,0.0578056,125.56,125.54,0.05160855]
[1744812910041,7.9655,125.55,125.54,0.05160855]
[1744812911440,8.0230056,125.56,125.54,0.05160855]
[1744812911641,574.0,125.63,125.55,19.22366153]
[1744812911841,574.0,125.63,125.56,2.1163]
[1744812912036,7.9639,125.58,125.56,2.1163]
[1744812912940,7.9643,125.57,125.56,1.764e-05]
[1744812916641,0.05185276,125.58,125.56,1.764e-05]
[1744812917246,8.01575276,125.58,125.56,1.764e-05]
[1744812918149,0.05185276,125.58,125.56,1.764e-05]
[1744812918448,0.05185276,125.58,125.57,7.9643]
[1744812919348,0.05185276,125.58,125.56,2.04701764]
[1744812920351,8.01555276,125.58,125.56,2.04701764]
[1744812921553,574.0,125.63,125.57,19.22366153]
[1744812921851,574.0,125.63,125.56,2.047]
[1744812922153,574.0,125.63,125.56,10.0116]
[1744812922449,7.9627,125.6,125.57,7.9643]
[1744812922651,0.05782643,125.61,125.58,0.05273543]
[1744812923348,7.9628,125.6,125.58,0.05273543]
[1744812923652,0.05782643,125.61,125.58,0.05273543]
[1744812923855,7.963,125.59,125.58,0.05273543]
[1744812924151,0.05782643,125.61,125.51,2.2102]
[1744812924152,19.22366153,125.6,125.51,2.2102]
[1744812924346,19.22366153,125.57,125.51,10.1783]
[1744812924544,21.44856153,125.59,125.51,2.2102]
[1744812924743,19.22366153,125.59,125.52,19.22366153]
[1744812925144,0.06102757,125.57,125.54,0.05255791]
[1744812925756,0.06102757,125.57,125.55,7.9655]
[1744812925957,0.06102757,125.57,125.54,19.27621944]
[1744812926253,0.06102757,125.57,125.55,2.0118]
[1744812926755,8.02562757,125.57,125.55,2.0118]
[1744812926956,0.06102757,125.57,125.55,2.0118]
[1744812928259,0.06102757,125.57,125.54,0.05255791]
[1744812928950,7.9655,125.55,125.54,0.05255791]
[1744812932365,27.18916153,125.55,125.54,0.05255791]
[1744812932568,19.22366153,125.55,125.5,362.0]
[1744812932870,19.22366153,125.55,125.46,23.28976153]
[1744812933565,8.02439261,125.52,125.49,0.05538888]
[1744812933769,0.05669261,125.52,125.49,0.05538888]
[1744812934463,7.9687,125.5,125.49,0.05538888]
[1744812936570,7.9684,125.51,125.49,0.05538888]
[1744812937167,7.9687,125.5,125.49,0.05538888]
[1744812938366,0.05669261,125.52,125.49,0.05538888]
[1744812939072,8.02439261,125.52,125.49,0.05538888]
[1744812939969,7.9682,125.51,125.49,0.05538888]
[1744812940168,0.05669261,125.52,125.49,0.05538888]
[1744812940572,19.22366153,125.51,125.49,0.05538888]
[1744812940868,19.22366153,125.51,125.44,4.4125]
[1744812941073,7.9709,125.47,125.44,4.4125]
[1744812941875,0.05905809,125.47,125.44,4.46914297]
[1744812942567,0.05905809,125.47,125.45,7.9714]
[1744812942770,0.05905809,125.47,125.44,23.6928045]
[1744812943377,0.05905809,125.47,125.46,7.9713]
[1744812944679,19.22366153,125.52,125.48,7.9697]
[1744812944870,21.26346153,125.54,125.48,7.9697]
[1744812945070,21.26346153,125.54,125.44,23.63616153]
[1744812945274,7.9683,125.51,125.44,23.63616153]
[1744812945574,7.9683,125.51,125.47,7.9702]
[1744812945777,0.05357514,125.5,125.48,0.05988073]
[1744812946076,0.05357514,125.5,125.49,7.9693]
[1744812946377,0.05357514,125.5,125.48,0.05988073]
[1744812946579,0.05357514,125.5,125.48,8.02948073]
[1744812947380,0.05357514,125.5,125.49,7.9693]
[1744812948475,7.9665,125.54,125.51,7.9681]
[1744812948978,7.9658,125.55,125.52,7.9673]
[1744812949177,2.1007,125.57,125.52,7.9673]
[1744812949478,0.05542298,125.56,125.53,0.05991665]
[1744812950178,8.02062298,125.56,125.53,0.05991665]
[1744812952078,0.05542298,125.56,125.53,8.02661665]
[1744812952675,8.02042298,125.56,125.53,0.05991665]
[1744812953974,7.9662,125.54,125.53,0.05991665]
[1744812954181,19.22366153,125.54,125.47,2.0913]
[1744812954982,7.9678,125.52,125.48,7.9696]
[1744812955182,0.05561699,125.51,125.49,0.05659777]
[1744812956182,8.02381699,125.51,125.49,0.05659777]
[1744812956581,0.05561699,125.51,125.49,0.05659777]
[1744812956777,8.02381699,125.51,125.49,0.05659777]
[1744812956981,0.05561699,125.51,125.49,0.05659777]
[1744812958382,8.02371699,125.51,125.49,0.05659777]
[1744812959488,0.05561699,125.51,125.49,0.05659777]
[1744812960084,7.967,125.53,125.49,0.05659777]
[1744812960280,2.0171,125.59,125.5,19.22366153]
[1744812960791,7.966,125.55,125.5,19.22366153]
[1744812961088,2.0171,125.59,125.52,19.22366153]
[1744812961389,7.9654,125.56,125.53,7.9665]
[1744812961590,0.05716524,125.57,125.54,0.06133279]
[1744812962091,7.9653,125.56,125.54,0.06133279]
[1744812962485,0.05716524,125.57,125.54,0.06133279]
[1744812962685,7.9655,125.55,125.54,0.06133279]
[1744812963291,7.9681,125.51,125.49,2.1402]
[1744812963988,19.22366153,125.58,125.49,2.1402]
[1744812964191,2.0171,125.59,125.5,19.22366153]
[1744812964484,0.05126766,125.55,125.52,0.0595297]
[1744812965092,8.01726766,125.55,125.52,0.0595297]
[1744812965293,0.05126766,125.55,125.52,0.0595297]
[1744812965695,7.9668,125.53,125.52,0.0595297]
[1744812967394,0.05126766,125.55,125.52,0.0595297]
[1744812968790,7.9668,125.53,125.52,0.0595297]
[1744812969093,19.22366153,125.54,125.47,2.0913]
[1744812969289,19.22366153,125.52,125.46,2.0727]
[1744812969986,19.22366153,125.5,125.44,2.1398]
[1744812970193,0.05671005,125.5,125.48,4.425e-05]
[1744812970389,7.9724,125.45,125.41,14.3014]
[1744812970586,19.22366153,125.49,125.41,6.3272]
[1744812970795,19.22366153,125.45,125.41,4.3193]
[1744812971194,7.9737,125.43,125.41,4.3193]
[1744812971494,0.05424279,125.44,125.42,0.05584202]
[1744812971684,7.9732,125.43,125.42,0.05584202]
[1744812976301,0.05424279,125.44,125.42,0.05584202]
[1744812977401,1.38775347,125.5,125.42,0.05584202]
[1744812977601,30.75967204,125.52,125.42,2.073]
[1744812977800,32.14701058,125.52,125.42,2.073]
[1744812977999,7.9709,125.47,125.43,10.0052]
[1744812978299,32.14701058,125.52,125.43,2.0324]
[1744812978504,7.9716,125.46,125.43,2.0324]
[1744812978795,0.05965551,125.46,125.43,2.08811304]
[1744812979001,0.05965551,125.46,125.43,0.05571304]
[1744812979691,7.9722,125.45,125.43,0.05571304]
[1744812979895,0.05965551,125.46,125.43,0.05571304]
[1744812980202,0.05965551,125.46,125.43,8.02851304]